bitfinex/quotes_ETHUSD_20240730
["timestamp","ask_amount","ask_price","bid_price","bid_amount"]
[1722355430519,0.55,3324.8,3324.7,0.09116384]
[1722355430719,0.55,3324.8,3324.4,3.00801]
[1722355430955,0.55,3324.8,3324.5,0.09126705]
[1722355431493,0.55,3324.8,3324.6,0.09121545]
[1722355431494,3.00783,3324.7,3324.6,0.09121545]
[1722355431681,4.2800297,3324.7,3324.1,3.00832]
[1722355431882,3.7300297,3324.7,3324.2,0.09142189]
[1722355432058,3.55788,3324.6,3324.2,0.09142189]
[1722355432875,0.55,3324.6,3324.2,3.09965189]
[1722355433986,3.55788,3324.6,3324.2,0.09142189]
[1722355434698,3.55788,3324.6,3324.1,3.0]
[1722355434994,6.56583,3324.6,3324.2,0.09142189]
[1722355435195,3.55788,3324.6,3324.2,0.09142189]
[1722355436492,0.55,3324.6,3324.2,0.09142189]
[1722355436693,0.55,3324.7,3324.3,3.00812]
[1722355436873,0.55,3324.7,3324.4,0.09131866]
[1722355437080,3.55784,3324.7,3324.4,0.09131866]
[1722355437276,3.55784,3324.7,3324.2,3.00823]
[1722355437482,3.55784,3324.7,3324.3,0.09137027]
[1722355437795,3.55784,3324.7,3324.2,3.00823]
[1722355437972,3.00789,3324.6,3324.4,0.09131866]
[1722355438168,3.00789,3324.6,3324.3,0.09137027]
[1722355438169,0.55,3324.5,3324.3,0.09137027]
[1722355438356,0.55,3324.5,3324.1,3.0]
[1722355438559,3.55798,3324.5,3324.1,3.0]
[1722355439156,0.55,3324.5,3324.1,6.00831]
[1722355439357,0.55,3324.6,3324.1,6.30941]
[1722355439562,0.55,3324.6,3324.1,3.0]
[1722355439563,3.00807,3324.4,3324.1,3.0]
[1722355439759,0.55,3324.3,3324.0,3.0]
[1722355440363,0.55,3324.5,3324.1,3.00828]
[1722355440587,0.55,3324.5,3324.2,3.00823]
[1722355440893,0.55,3324.5,3324.1,3.00832]
[1722355441458,0.55,3324.5,3324.1,3.30942]
[1722355441658,0.55,3324.5,3323.9,3.0]
[1722355441864,0.55,3324.7,3324.2,3.00815]
[1722355442088,3.00743,3325.1,3324.5,3.0079]
[1722355442359,3.00743,3325.1,3324.6,3.00787]
[1722355442586,3.00757,3325.0,3324.5,0.33061641]
[1722355443018,3.00757,3325.0,3324.6,0.09125247]
[1722355443311,3.00778,3324.8,3324.6,0.09125247]
[1722355444070,0.55,3324.7,3324.6,0.09125247]
[1722355444996,3.55779,3324.7,3324.6,0.09125247]
[1722355445195,7.222136,3324.7,3324.6,0.09125247]
[1722355445497,9.548136,3324.7,3324.6,0.09125247]
[1722355445889,4.214386,3324.7,3324.5,0.33061641]
[1722355446087,0.55,3324.7,3324.5,0.33061641]
[1722355446298,0.55,3324.7,3324.6,0.09123164]
[1722355446492,3.55759,3325.0,3324.6,0.09123164]
[1722355446691,3.55758,3325.0,3324.6,0.09123164]
[1722355447212,3.00765,3324.9,3324.6,0.09123164]
[1722355447508,0.55,3324.8,3324.6,3.09908164]
[1722355448000,0.55,3325.0,3324.6,0.09123164]
[1722355448976,0.55,3325.0,3324.7,3.00778]
[1722355449166,0.55,3325.1,3324.7,0.09118004]
[1722355449372,10.049,3325.6,3324.7,0.09118004]
[1722355449373,3.00693,3325.7,3325.1,3.00738]
[1722355449680,5.50286,3325.9,3325.3,6.01441]
[1722355449681,3.307472,3325.8,3325.3,6.01441]
[1722355449994,10.39662,3326.0,3325.4,3.09789577]
[1722355449995,7.39,3326.0,3325.4,3.09789577]
[1722355450195,10.39661,3326.0,3325.4,0.09079577]
[1722355450568,3.00673,3325.9,3325.4,3.00714]
[1722355450771,3.00697,3325.6,3325.5,0.09074419]
[1722355451023,3.00707,3325.5,3325.0,3.00742]
[1722355451165,3.00676,3325.9,3325.5,0.09074419]
[1722355451479,0.55,3325.8,3325.4,3.00715]
[1722355451665,3.00688,3325.7,3325.6,0.09053529]
[1722355451870,6.01394,3325.6,3325.5,0.09058686]
[1722355452089,3.00721,3325.4,3324.9,3.0076]
[1722355452300,3.0072,3325.4,3324.8,3.00764]
[1722355452481,0.55,3325.3,3324.8,3.00768]
[1722355452686,0.55,3325.3,3324.6,8.3387]
[1722355452898,3.00738,3325.2,3324.6,8.3387]
[1722355453102,0.55,3325.1,3324.6,8.3387]
[1722355453728,3.55743,3325.1,3324.6,8.3387]
[1722355454014,0.55,3325.1,3324.6,11.64763]
[1722355454236,0.55,3325.1,3324.7,3.00777]
[1722355454583,0.55,3325.1,3324.8,3.00765]
[1722355454783,0.55,3325.2,3324.8,3.00765]
[1722355455213,3.55734,3325.2,3324.7,3.00777]
[1722355455417,3.55734,3325.2,3324.6,6.30897]
[1722355455724,0.55,3325.2,3325.0,3.00747]
[1722355456018,0.55,3325.2,3324.6,3.96505864]
[1722355456019,0.55,3325.2,3325.1,3.00742]
[1722355456185,5.38678,3326.2,3325.6,3.00696]
[1722355456377,0.538678,3326.1,3325.6,3.00692]
[1722355456584,3.00629,3326.4,3325.7,3.00684]
[1722355456781,2.3092,3326.5,3325.4,3.00711]
[1722355456782,3.00666,3326.0,3325.4,3.00711]
[1722355456992,3.00675,3325.9,3325.3,3.00724]
[1722355457188,3.00666,3326.0,3325.2,3.00727]
[1722355457189,3.00667,3326.0,3325.4,3.00714]
[1722355457413,3.307337,3326.0,3325.4,3.00714]
[1722355458155,3.307337,3326.0,3325.5,0.09057067]
[1722355458600,3.00684,3325.8,3325.2,6.01457]
[1722355458805,0.55,3325.7,3325.6,0.0905191]
[1722355459119,0.55,3325.9,3325.6,0.0905191]
[1722355459323,0.55,3325.9,3325.6,3.0974791]
[1722355459523,3.55667,3326.0,3325.6,0.0905191]
[1722355459723,4.02453318,3326.0,3325.6,0.0905191]
[1722355459923,1.01786318,3326.0,3325.6,3.00697]
[1722355460120,0.55,3326.0,3325.7,0.09046752]
[1722355460428,0.55,3326.1,3325.6,3.00697]
[1722355460601,0.55,3326.1,3325.8,0.09041596]
[1722355460797,0.55,3326.1,3325.6,3.00697]
[1722355461006,3.912219,3326.1,3325.9,0.09036439]
[1722355461204,0.55,3326.1,3325.9,0.09036439]
[1722355461419,0.55,3326.1,3325.7,3.00686]
[1722355461620,0.55,3326.1,3326.0,0.09031283]
[1722355461818,0.55,3326.1,3325.7,3.00686]
[1722355462015,0.55,3326.1,3326.0,0.09031283]
[1722355462331,0.55,3326.1,3325.7,3.00688]
[1722355462536,0.55,3326.2,3325.7,3.00688]
[1722355462827,0.55,3326.2,3325.8,3.09695769]
[1722355463197,10.39573,3327.0,3325.8,3.09695769]
[1722355463198,3.00602,3326.7,3326.1,3.00648]
[1722355463393,2.4251,3326.9,3326.2,3.00637]
[1722355463394,5.43096,3326.9,3326.2,3.00637]
[1722355463620,3.00586,3326.9,3326.4,3.00621]
[1722355463823,3.00567,3327.1,3326.3,0.08991989]
[1722355463824,3.00576,3327.0,3326.3,0.08991989]
[1722355464022,3.00593,3326.8,3326.2,3.00637]
[1722355464198,3.00604,3326.7,3326.2,3.00637]
[1722355464412,3.00604,3326.7,3326.3,0.08991989]
[1722355464413,3.00607,3326.6,3326.3,0.08991989]
[1722355464723,3.00607,3326.6,3326.1,5.35361]
[1722355464922,3.00607,3326.6,3326.4,0.08986834]
[1722355465236,0.55,3326.5,3326.1,5.35361]
[1722355465597,0.55,3326.5,3326.1,5.41373413]
[1722355465929,0.55,3326.5,3326.1,3.00651]
[1722355466136,0.55,3326.5,3326.2,3.00642]
[1722355466345,0.55,3326.7,3326.2,3.00642]
[1722355466565,0.55,3326.7,3325.9,3.00664]
[1722355466566,3.00613,3326.6,3325.9,3.00664]
[1722355466702,3.00613,3326.6,3325.7,2.3275]
[1722355466703,0.55,3326.5,3326.1,3.00647]
[1722355466903,0.55,3326.7,3326.1,3.00647]
[1722355467105,3.556,3326.7,3326.0,0.06012414]
[1722355467329,3.556,3326.7,3326.2,3.00642]
[1722355467544,0.55,3326.7,3326.2,6.01279]
[1722355467749,3.55599,3326.7,3326.2,3.00637]
[1722355467912,3.00607,3326.6,3326.1,3.00652]
[1722355468119,0.55,3326.5,3326.1,3.00652]
[1722355468545,0.55,3326.5,3325.9,3.00665]
[1722355468546,3.55623,3326.5,3325.9,3.00665]
[1722355468711,3.00625,3326.4,3325.9,3.00665]
[1722355468907,0.55,3326.3,3325.7,5.33434]
[1722355469109,0.55,3326.3,3325.8,3.0]
[1722355469110,3.00657,3326.1,3325.8,3.0]
[1722355469343,3.00657,3326.1,3325.5,13.65812]
[1722355469344,3.966965,3326.3,3325.7,3.00687]
[1722355469655,0.55,3326.3,3325.9,3.00664]
[1722355470050,0.55,3326.3,3325.8,3.00679]
[1722355470349,3.55638,3326.3,3325.8,3.00679]
[1722355470554,3.55638,3326.3,3325.8,3.00675]
[1722355470714,0.55,3326.3,3325.9,3.00666]
[1722355470916,0.55,3326.4,3325.9,3.00666]
[1722355471245,6.56258,3326.4,3325.8,3.00675]
[1722355471543,6.56257,3326.4,3325.8,3.00675]
[1722355471847,3.55625,3326.4,3325.8,3.00675]
[1722355472044,3.00636,3326.3,3325.8,3.00675]
[1722355472231,3.55625,3326.4,3325.8,3.00673]
[1722355472232,0.55,3326.2,3325.8,3.00673]
[1722355472573,3.55625,3326.4,3325.9,3.00665]
[1722355473136,3.55625,3326.4,3326.0,0.09007456]
[1722355473963,0.55,3326.4,3326.0,0.09007456]
[1722355474254,3.00635,3326.3,3326.0,0.09007456]
[1722355474411,0.55,3326.2,3325.8,3.00678]
[1722355474614,0.55,3326.2,3326.1,0.08976167]
[1722355474822,0.55,3326.2,3325.8,3.00672]
[1722355475028,0.55,3326.4,3326.1,0.08976167]
[1722355475430,0.55,3326.4,3326.0,3.00659]
[1722355475746,3.55625,3326.4,3326.2,0.08971012]
[1722355475978,3.55625,3326.4,3325.8,3.00672]
[1722355475979,3.55625,3326.4,3326.3,0.08965856]
[1722355476135,3.55625,3326.4,3325.9,3.0067]
[1722355476536,3.55625,3326.4,3326.0,0.08981323]
[1722355478039,0.55,3326.4,3326.0,0.08981323]
[1722355478239,3.55629,3326.4,3326.0,0.08981323]
[1722355478642,3.00639,3326.3,3326.0,0.08981323]
[1722355478844,0.55,3326.2,3325.8,3.00679]
[1722355479155,0.55,3326.2,3325.5,7.35]
[1722355479156,3.00674,3325.9,3325.5,7.35]
[1722355479357,3.379239,3326.2,3325.6,0.0900195]
[1722355479568,3.00662,3326.0,3325.5,3.00706]
[1722355479775,3.00662,3326.0,3325.6,0.0900195]
[1722355479776,0.55,3325.9,3325.6,0.0900195]
[1722355480068,3.5567,3325.9,3325.5,3.0]
[1722355480248,3.5567,3325.9,3325.7,0.08996793]
[1722355480447,3.5567,3325.9,3325.5,3.0]
[1722355480675,3.5567,3325.9,3325.8,0.08991636]
[1722355481175,0.55,3325.9,3325.8,0.08991636]
[1722355481368,0.55,3325.9,3325.5,3.0]
[1722355481677,0.55,3325.9,3325.6,0.0900195]
[1722355482263,3.55672,3325.9,3325.6,0.0900195]
[1722355484463,3.0068,3325.8,3325.6,0.0900195]
[1722355484674,3.55689,3325.7,3325.1,10.35735]
[1722355484844,3.00704,3325.6,3325.2,3.0]
[1722355485043,3.55706,3325.5,3325.2,3.0]
[1722355485238,3.0072,3325.4,3325.2,3.0]
[1722355485442,3.00739,3325.2,3324.5,3.00791]
[1722355485665,0.55,3325.3,3324.6,3.00786]
[1722355485666,3.55747,3325.1,3324.6,3.00786]
[1722355485877,3.00734,3325.2,3324.6,3.00786]
[1722355486179,0.55,3325.1,3325.0,3.00751]
[1722355486343,0.55,3325.1,3324.9,3.0076]
[1722355486681,3.5572,3325.4,3324.9,3.0076]
[1722355486883,0.55,3325.4,3325.0,3.00749]
[1722355487091,0.55,3325.5,3325.0,3.00749]
[1722355487766,3.55708,3325.5,3325.1,0.09066133]
[1722355487960,3.55708,3325.5,3325.0,3.00749]
[1722355488366,3.55708,3325.5,3325.1,0.09066133]
[1722355488570,3.55708,3325.5,3325.0,3.00749]
[1722355488963,6.56422,3325.5,3325.1,0.09064745]
[1722355489168,6.5642,3325.5,3324.9,3.00758]
[1722355489483,3.55708,3325.5,3325.0,0.09069904]
[1722355490180,6.56422,3325.5,3325.0,0.09069904]
[1722355490381,3.00729,3325.3,3325.0,0.09069904]
[1722355490540,0.55,3325.2,3324.7,6.01545]
[1722355490745,0.55,3325.2,3324.7,3.00772]
[1722355490944,0.55,3325.2,3324.8,0.09080685]
[1722355491282,0.55,3325.2,3324.8,6.10612685]
[1722355491581,0.55,3325.3,3324.8,3.73916953]
[1722355491780,3.55725,3325.3,3324.8,0.73152953]
[1722355491985,3.00737,3325.2,3324.8,0.73152953]
[1722355492281,0.55,3325.1,3324.8,0.73152953]
[1722355493350,3.55743,3325.1,3324.8,0.09080685]
[1722355493750,3.55743,3325.1,3324.6,3.00784]
[1722355493751,0.55,3325.1,3324.7,3.00778]
[1722355493950,0.55,3325.1,3324.9,0.09075526]
[1722355494150,0.55,3325.1,3324.8,0.09080685]
[1722355494363,0.55,3325.1,3325.0,0.09070366]
[1722355494565,0.55,3325.1,3324.9,0.09075526]
[1722355494761,0.55,3325.1,3325.0,0.09070366]
[1722355494964,0.55,3325.2,3325.0,0.09070366]
[1722355495159,0.55,3325.2,3324.8,3.00768]
[1722355495375,3.55733,3325.2,3325.1,0.09065207]
[1722355495575,3.55733,3325.2,3324.7,3.00778]
[1722355495775,0.55,3325.2,3325.1,0.09065207]
[1722355495953,0.55,3325.2,3324.8,3.00768]
[1722355496171,3.55733,3325.2,3324.7,3.00778]
[1722355496704,0.55,3325.2,3324.8,0.09080685]
[1722355496885,3.00724,3325.3,3324.8,3.09849685]
[1722355497094,0.55,3325.2,3324.8,3.09849685]
[1722355499245,3.55735,3325.2,3324.8,0.09080685]
[1722355499902,0.55,3325.2,3324.8,3.09845685]
[1722355500067,0.55,3325.2,3324.8,3.09844685]
[1722355500268,0.55,3325.2,3325.0,3.00747]
[1722355500501,3.00717,3325.4,3324.9,3.09847556]
[1722355500690,0.55,3325.3,3325.1,3.09814237]
[1722355500891,0.55,3325.3,3325.0,2.4946]
[1722355500892,3.00645,3326.2,3325.7,3.00684]
[1722355501100,3.0062,3326.5,3325.9,3.00664]
[1722355501273,3.00626,3326.4,3325.8,3.09720133]
[1722355501469,3.00612,3326.6,3326.0,0.0903082]
[1722355501668,3.00629,3326.4,3325.9,3.09703976]
[1722355501906,3.00604,3326.7,3326.1,0.09025664]
[1722355502071,2.3183,3326.8,3325.9,3.00666]
[1722355502072,3.00613,3326.6,3325.9,3.00666]
[1722355502276,3.00625,3326.5,3326.2,0.09020508]
[1722355502493,3.00625,3326.5,3326.0,3.0066]
[1722355502704,3.00622,3326.5,3326.3,0.09015353]
[1722355502919,3.00622,3326.5,3326.0,3.00656]
[1722355503225,3.00585,3326.9,3326.4,0.09010198]
[1722355503517,3.00585,3326.9,3326.3,3.00633]
[1722355503518,3.00585,3326.9,3326.3,3.00627]
[1722355503729,3.00585,3326.9,3326.5,0.09005043]
[1722355503873,0.6312077,3326.9,3326.4,0.09010198]
[1722355504078,3.00607,3326.6,3326.0,5.42086]
[1722355504272,3.00636,3326.3,3325.8,3.00675]
[1722355504504,0.55,3326.2,3325.9,3.0]
[1722355504717,0.55,3326.2,3325.7,3.00687]
[1722355504896,0.55,3326.2,3325.8,3.0]
[1722355505343,4.212759,3326.2,3325.8,3.0]
[1722355505623,4.212759,3326.2,3325.5,10.357]
[1722355505624,1.206279,3326.2,3325.7,3.00686]
[1722355505832,1.206279,3326.2,3325.8,3.0]
[1722355506312,0.55,3326.2,3325.8,3.0]
[1722355506718,0.55,3326.3,3325.8,6.00673]
[1722355507073,0.55,3326.3,3325.9,3.00669]
[1722355507217,0.55,3326.3,3325.8,3.0]
[1722355507547,3.00665,3326.0,3325.5,10.35702]
[1722355507760,0.55,3325.9,3325.5,7.35]
[1722355508352,3.00681,3325.8,3325.5,7.35]
[1722355508550,0.55,3325.7,3325.5,7.35]
[1722355509122,0.55,3325.7,3325.3,3.00716]
[1722355509322,0.55,3325.8,3325.3,3.00716]
[1722355509914,3.55686,3325.8,3325.2,3.33783801]
[1722355510118,3.00691,3325.7,3325.2,3.33783801]
[1722355510368,3.00712,3325.5,3325.2,0.33050801]
[1722355510724,0.55,3325.4,3325.2,3.33778801]
[1722355510921,3.55685,3325.8,3325.3,3.00724]
[1722355512648,0.55,3325.8,3325.2,0.33050801]
[1722355512830,0.55,3325.8,3325.4,3.00709]
[1722355513043,0.55,3326.0,3325.7,3.00688]
[1722355513367,0.55,3326.1,3325.7,3.00687]
[1722355513560,0.55,3326.1,3325.2,0.33050801]
[1722355513561,3.55652,3326.1,3325.3,3.00719]
[1722355513869,0.55,3326.1,3325.2,0.33050801]
[1722355514073,3.00648,3326.2,3325.7,3.00688]
[1722355514275,0.850648,3326.1,3325.7,3.00683]
[1722355514443,0.850648,3326.1,3325.5,3.00701]
[1722355514630,0.55,3326.1,3325.5,3.00701]
[1722355514832,3.00644,3326.2,3325.7,3.00683]
[1722355515026,0.55,3326.1,3325.7,3.00683]
[1722355515239,0.55,3326.1,3325.5,3.00697]
[1722355515453,0.55,3326.2,3325.7,3.00688]
[1722355515756,0.905642,3326.2,3325.7,3.00682]
[1722355516157,0.905642,3326.2,3325.6,3.00697]
[1722355516326,3.912092,3326.2,3325.5,3.00701]
[1722355516521,6.918602,3326.2,3325.5,3.00701]
[1722355516728,6.918602,3326.2,3325.3,3.00717]
[1722355516729,3.00662,3326.0,3325.3,3.00717]
[1722355516959,0.55,3325.9,3325.4,3.00714]
[1722355517338,3.6983802,3326.1,3325.4,3.00714]
[1722355517339,3.55662,3326.0,3325.4,3.00715]
[1722355517548,3.55662,3326.0,3325.2,0.63160801]
[1722355517549,1.31106022,3326.0,3325.3,3.00724]
[1722355517745,1.31106022,3326.0,3325.4,3.00713]
[1722355517948,0.55,3326.0,3325.4,3.0975903]
[1722355519540,0.55,3326.0,3325.5,3.00704]
[1722355519944,0.55,3326.0,3325.6,0.09035715]
[1722355520637,0.55,3326.1,3325.6,0.09035715]
[1722355520983,2.3583,3326.9,3326.4,3.00624]
[1722355521224,2.3583,3326.9,3326.3,3.00634]
[1722355521506,5.3641,3326.9,3326.4,0.08983827]
[1722355521785,3.195287,3326.9,3326.4,0.08983827]
[1722355522003,3.195287,3326.9,3326.3,3.00629]
[1722355522281,2.3583,3327.3,3326.6,3.00601]
[1722355522447,2.3583,3327.3,3326.5,3.00615]
[1722355522650,2.3583,3327.3,3326.7,0.0895449]
[1722355522851,2.3583,3327.3,3326.5,3.00615]
[1722355523053,0.23583,3327.2,3326.8,0.08949336]
[1722355523291,0.23583,3327.2,3326.6,3.00607]
[1722355523434,2.3583,3327.3,3326.6,3.00607]
[1722355523633,5.36374,3327.3,3326.7,0.0895449]
[1722355524085,0.55,3327.2,3326.5,3.00615]
[1722355524382,0.55,3327.2,3326.8,0.08943325]
[1722355524383,3.00568,3327.1,3326.8,0.08943325]
[1722355524595,0.55,3327.0,3326.3,3.00628]
[1722355524883,0.55,3327.0,3326.6,3.00602]
[1722355525088,5.36378,3327.3,3326.6,3.00602]
[1722355525089,0.55,3327.2,3326.6,3.00602]
[1722355525282,0.55,3327.2,3326.7,3.09541479]
[1722355525438,0.55,3327.2,3326.9,3.00579]
[1722355525638,2.2797,3327.7,3327.0,0.08930245]
[1722355525831,5.60851598,3328.5,3327.0,0.08930245]
[1722355525832,3.00481,3328.0,3327.3,3.00543]
[1722355526137,3.00481,3328.0,3327.1,3.00554]
[1722355526499,3.00491,3327.9,3327.2,0.08919246]
[1722355527145,0.55,3327.8,3327.2,3.09465246]
[1722355527332,3.55483,3328.0,3327.2,3.09465246]
[1722355527579,0.583453,3327.9,3327.3,3.00543]
[1722355527780,0.55,3327.8,3327.3,3.00543]
[1722355527990,0.55,3327.8,3327.4,0.08904782]
[1722355529091,0.55,3327.8,3327.7,0.33050801]
[1722355529483,0.55,3327.8,3327.7,0.4192534]
[1722355529840,0.55,3327.8,3327.7,0.08874539]
[1722355530246,0.55,3328.0,3327.0,3.3068]
[1722355530447,3.00464,3328.2,3327.0,3.3068]
[1722355530448,0.55,3328.1,3327.7,0.08874077]
[1722355530753,0.55,3328.1,3327.5,3.00523]
[1722355530986,0.55,3328.1,3327.8,0.08868927]
[1722355531311,0.38315516,3328.3,3327.9,0.08864469]
[1722355531515,2.4449,3328.5,3327.9,0.08864469]
[1722355531807,3.00411,3328.8,3327.9,3.09349469]
[1722355531808,3.0042,3328.7,3327.9,3.09349469]
[1722355531960,3.0042,3328.7,3328.0,3.0048]
[1722355532162,3.0042,3328.7,3328.0,3.14640979]
[1722355532410,0.600831,3328.6,3328.0,3.14640979]
[1722355532762,3.605121,3328.6,3328.0,0.14160979]
[1722355533073,3.55435,3328.5,3328.0,0.14160979]
[1722355533474,0.55,3328.5,3328.0,0.14160979]
[1722355534275,2.2757,3328.9,3328.0,0.20170775]
[1722355534495,3.00378,3329.2,3328.4,3.00444]
[1722355534705,5.30829,3329.3,3328.4,3.00444]
[1722355534878,2.3046,3329.3,3328.7,3.00417]
[1722355535213,2.3046,3329.3,3328.5,0.14127685]
[1722355535412,3.23425,3329.2,3328.8,0.14111732]
[1722355535610,3.00386,3329.1,3328.4,3.00444]
[1722355535779,3.00386,3329.1,3328.9,0.14106415]
[1722355536111,3.00386,3329.1,3329.0,0.14101098]
[1722355536282,6.861981,3329.1,3329.0,0.14101098]
[1722355536479,3.00407,3328.9,3328.2,10.65563]
[1722355536713,0.55,3328.8,3328.2,10.65563]
[1722355536871,0.55,3328.8,3328.3,0.14138322]
[1722355537269,0.55,3328.8,3328.2,7.6511]
[1722355537605,3.00412,3328.8,3328.4,0.14133003]
[1722355537807,3.854582,3328.7,3328.3,0.14138322]
[1722355538012,3.00426,3328.6,3328.5,0.14127685]
[1722355538193,3.00426,3328.6,3327.8,2.82194979]
[1722355538194,3.00435,3328.5,3328.4,0.14133003]
[1722355538388,3.00426,3328.6,3328.5,0.14127685]
[1722355538587,3.55426,3328.6,3328.0,0.3011]
[1722355538785,0.55,3328.5,3328.0,0.3011]
[1722355539010,0.55,3328.5,3328.1,0.14136952]
[1722355539207,3.55437,3328.5,3328.1,0.14136952]
[1722355539411,3.00458,3328.3,3328.1,0.14136952]
[1722355539711,0.55,3328.2,3327.8,0.33024979]
[1722355539915,0.55,3328.2,3327.8,2.85379197]
[1722355540082,0.55,3328.2,3328.1,3.00471]
[1722355541109,0.55,3328.2,3328.0,5.6544]
[1722355541313,0.55,3328.2,3328.0,2.6496]
[1722355541604,0.55,3328.2,3328.1,3.00471]
[1722355541808,0.55,3328.2,3328.1,3.870621]
[1722355541970,0.55,3328.2,3328.1,7.176431]
[1722355542775,0.55,3328.2,3328.1,4.171721]
[1722355543107,0.55,3328.2,3328.1,7.176431]
[1722355543315,3.00369,3329.3,3328.5,3.00426]
[1722355543516,3.00341,3329.6,3328.6,0.36050488]
[1722355543826,3.00341,3329.6,3328.6,0.06007888]
[1722355544025,3.00341,3329.6,3328.7,3.00417]
[1722355544026,3.00358,3329.4,3328.7,3.00417]
[1722355544809,0.55,3329.3,3328.7,3.00417]
[1722355545018,0.55,3329.3,3328.7,3.00411]
[1722355545322,3.00348,3329.5,3328.5,0.3011]
[1722355545323,0.55,3329.4,3328.8,3.00408]
[1722355545525,0.55,3329.4,3328.8,38.00402]
[1722355545823,0.55,3329.4,3328.6,3.30528]
[1722355546024,3.00364,3329.3,3328.6,3.30528]
[1722355546191,0.55,3329.2,3328.7,35.0]
[1722355546393,0.55,3329.2,3328.7,38.00411]
[1722355546731,0.55,3329.3,3328.8,3.00407]
[1722355546890,3.00363,3329.3,3328.7,38.04901288]
[1722355547086,0.55,3329.2,3328.7,35.0]
[1722355547350,0.55,3329.2,3328.7,38.00417]
[1722355547504,0.55,3329.2,3328.5,3.30537]
[1722355547694,0.55,3329.2,3328.6,3.00425]
[1722355547893,0.55,3329.2,3328.6,38.14514803]
[1722355548132,3.55374,3329.2,3328.6,38.18991091]
[1722355548628,0.55,3329.2,3328.6,6.19412091]
[1722355548933,3.00355,3329.4,3328.6,3.14509803]
[1722355548934,0.55,3329.3,3328.6,3.14509803]
[1722355549229,3.55365,3329.3,3328.6,3.14509803]
[1722355549429,0.55,3329.3,3328.6,3.14509803]
[1722355549593,0.55,3329.4,3328.6,3.14509803]
[1722355549935,3.55363,3329.4,3328.6,4.06004583]
[1722355550225,3.55363,3329.4,3328.7,0.06007659]
[1722355550226,3.55356,3329.4,3328.7,0.06007659]
[1722355550413,3.55356,3329.4,3328.7,3.06424659]
[1722355550623,3.55356,3329.4,3328.8,0.14079167]
[1722355551629,3.00364,3329.3,3328.8,0.14079167]
[1722355551829,0.55,3329.2,3328.6,3.9191478]
[1722355552132,0.55,3329.2,3328.7,3.20508143]
[1722355552322,3.55355,3329.4,3328.8,3.00408]
[1722355552634,0.55,3329.4,3329.0,3.00385]
[1722355552933,0.55,3329.6,3329.1,3.14443217]
[1722355553109,0.55,3329.6,3329.1,0.14063217]
[1722355553437,3.55337,3329.6,3329.1,0.14063217]
[1722355553799,0.55,3329.6,3329.1,0.14063217]
[1722355555001,0.55,3329.6,3328.7,3.00411]
[1722355555197,0.55,3329.6,3328.9,3.00398]
[1722355555198,3.55337,3329.6,3328.9,3.00398]
[1722355555395,3.55337,3329.6,3329.0,0.14055374]
[1722355555616,3.00349,3329.5,3329.0,0.14055374]
[1722355555843,0.55,3329.4,3328.8,6.815831]
[1722355556022,0.55,3329.4,3328.9,0.1406069]
[1722355556410,0.55,3329.4,3329.0,0.06007136]
[1722355556620,0.55,3329.6,3329.1,0.14050057]
[1722355557510,0.55,3329.6,3329.1,3.14425057]
[1722355557716,0.55,3329.7,3329.1,3.46468276]
[1722355557932,0.55,3329.7,3329.2,3.00372]
[1722355558111,0.55,3329.8,3329.2,3.00367]
[1722355558315,0.55,3329.8,3329.3,0.14039425]
[1722355558720,0.55,3329.8,3329.2,3.00367]
[1722355559024,0.55,3329.8,3329.3,2.8043795]
[1722355559232,0.55,3329.8,3329.7,0.33024979]
[1722355559427,0.55,3329.8,3329.7,0.47043144]
[1722355559934,0.55,3329.8,3329.7,0.14018165]
[1722355560338,0.55,3329.8,3329.0,5.66584]
[1722355560339,3.00341,3329.6,3328.9,2.3623]
[1722355560546,3.55346,3329.5,3329.0,35.0]
[1722355560744,3.00354,3329.4,3329.0,35.0]
[1722355560941,3.55364,3329.3,3329.0,35.0]
[1722355561251,3.00373,3329.2,3328.8,7.35]
[1722355561456,0.55,3329.3,3328.9,3.00398]
[1722355561621,0.55,3329.4,3328.9,3.00398]
[1722355561967,0.55,3329.4,3328.9,4.339739]
[1722355562178,3.55347,3329.5,3328.9,1.335799]
[1722355562373,3.00364,3329.3,3328.8,7.35]
[1722355562655,3.55372,3329.2,3328.6,3.00426]
[1722355562851,3.55372,3329.2,3328.7,0.14071325]
[1722355563053,3.55372,3329.2,3328.5,35.0]
[1722355563054,6.55753,3329.2,3328.6,3.0]
[1722355563358,2.2693,3329.1,3328.7,0.14071325]
[1722355563502,6.00816,3328.8,3328.7,0.14071325]
[1722355563706,0.83193,3329.0,3327.9,10.35487]
[1722355563707,3.00427,3328.6,3327.9,10.35487]
[1722355563950,3.00445,3328.4,3327.9,7.35]
[1722355564153,3.00427,3328.6,3328.0,35.14108556]
[1722355564154,3.55454,3328.3,3328.0,35.14108556]
[1722355564371,3.00463,3328.2,3328.0,35.14108556]
[1722355564527,0.55,3328.1,3328.0,0.14108556]
[1722355564903,0.55,3328.2,3328.0,0.14108556]
[1722355565107,0.55,3328.2,3328.1,3.00471]
[1722355565442,0.55,3328.2,3328.1,11.61346388]
[1722355565650,0.55,3328.2,3328.1,14.31236388]
[1722355565936,0.55,3328.2,3328.1,11.30765388]
[1722355566257,0.55,3328.2,3328.1,14.20666322]